bitfinex/quotes_ETHUSD_20260130
["timestamp","ask_amount","ask_price","bid_price","bid_amount"]
[1769805195958,0.001,2689.3,2687.7,9.23068114]
[1769805197750,0.001,2689.3,2687.8,0.93012872]
[1769805198155,0.001,2689.3,2687.7,0.93015129]
[1769805198462,0.52111406,2689.2,2687.7,0.93015129]
[1769805198662,8.94512474,2689.2,2687.7,0.93016216]
[1769805198982,0.001,2689.3,2687.7,0.93016216]
[1769805199185,0.52111406,2689.1,2687.7,0.93016216]
[1769805199479,0.001,2689.3,2687.8,0.46508155]
[1769805199631,0.001,2689.3,2687.9,0.93009412]
[1769805199828,0.52211406,2689.3,2687.8,0.93012167]
[1769805200053,0.001,2689.3,2687.8,0.93012167]
[1769805200252,0.52111406,2689.2,2687.8,0.93012167]
[1769805200566,0.89461247,2689.1,2687.8,0.93012167]
[1769805200756,0.89461247,2689.1,2687.3,3.72111225]
[1769805200757,9.31862315,2689.1,2687.3,3.72111225]
[1769805201060,9.31862315,2689.1,2687.8,0.93012496]
[1769805201274,9.31862315,2689.1,2687.7,0.93014954]
[1769805201451,9.31862315,2689.1,2687.8,0.93012038]
[1769805201770,0.92974822,2688.9,2687.2,3.72132027]
[1769805201942,3.71865617,2689.2,2687.2,3.72132027]
[1769805202657,3.71865617,2689.2,2687.2,0.9303364]
[1769805202658,8.42401068,2689.1,2687.2,0.9303364]
[1769805202853,8.42401068,2689.0,2687.1,0.93023576]
[1769805203052,8.42401068,2688.8,2687.1,0.93023576]
[1769805203254,8.42401068,2688.6,2687.1,1.86060111]
[1769805203456,0.52111406,2688.5,2687.1,1.86060111]
[1769805203657,0.92992114,2688.4,2687.1,0.93023576]
[1769805203864,8.94512474,2688.3,2687.1,0.93023576]
[1769805204037,9.41151527,2688.2,2687.1,0.93023576]
[1769805204390,8.42401068,2688.1,2686.0,0.93074579]
[1769805204553,8.42401068,2687.5,2685.9,0.93186951]
[1769805204910,9.20301068,2688.1,2686.0,0.93073889]
[1769805205487,0.9297828,2688.8,2686.2,8.45168114]
[1769805205693,0.93076708,2688.9,2687.6,0.0011]
[1769805205872,0.001,2688.9,2687.6,0.0011]
[1769805206040,8.42501068,2688.9,2687.6,0.0011]
[1769805206242,8.98487474,2688.9,2687.6,0.0011]
[1769805206684,8.42501068,2688.9,2687.6,0.0011]
[1769805206869,0.92040107,2688.8,2687.6,0.0011]
[1769805207480,8.98387474,2688.7,2687.6,0.0011]
[1769805207857,0.92985196,2688.6,2687.6,0.0011]
[1769805208848,0.92982864,2688.7,2687.6,0.0011]
[1769805209191,1.85020982,2688.8,2687.6,0.0011]
[1769805209544,0.001,2688.9,2687.6,0.0011]
[1769805209771,0.93078132,2688.9,2687.6,0.0011]
[1769805209992,0.001,2688.9,2687.6,0.0011]
[1769805210280,8.42501068,2688.9,2687.6,0.0011]
[1769805210485,0.84250107,2688.8,2687.6,0.0011]
[1769805210646,0.001,2688.9,2687.6,0.0011]
[1769805214421,8.42501068,2688.9,2687.6,0.0011]
[1769805215610,0.001,2688.9,2687.6,0.0011]
[1769805215986,0.9297828,2688.8,2687.6,0.0011]
[1769805216680,8.02164113,2688.6,2686.6,0.0011]
[1769805217012,8.02164113,2688.4,2686.6,0.0011]
[1769805217510,1.45498967,2688.5,2686.6,0.0011]
[1769805217809,0.9297828,2688.8,2686.6,0.7801]
[1769805218015,9.64215333,2688.8,2686.7,0.93050954]
[1769805218309,8.71237053,2688.5,2686.6,0.0011]
[1769805218509,8.71237053,2688.4,2686.6,0.0011]
[1769805218723,0.55986406,2688.7,2686.6,0.0011]
[1769805218724,0.1024,2688.0,2686.6,0.0011]
[1769805218923,8.71237053,2687.7,2685.9,0.0011]
[1769805219225,8.71237053,2687.7,2686.0,0.93075093]
[1769805219515,8.71237053,2687.7,2685.9,3.72423076]
[1769805219719,8.71237053,2687.5,2685.9,0.0011]
[1769805220033,8.71237053,2687.3,2685.9,0.0011]
[1769805220241,9.6766343,2687.2,2685.9,0.0011]
[1769805221094,0.96426377,2687.2,2685.9,0.0011]
[1769805221324,0.93016333,2687.7,2685.9,0.0011]
[1769805221492,0.92981738,2688.7,2686.1,8.40994671]
[1769805221905,0.92981738,2688.7,2686.3,8.40994671]
[1769805222113,0.001,2688.9,2686.5,8.40994671]
[1769805222426,0.001,2688.9,2686.9,8.40994671]
[1769805222726,0.001,2688.9,2687.0,0.84099467]
[1769805222912,0.001,2688.9,2687.0,9.25094138]
[1769805223229,0.001,2688.9,2687.1,0.1024]
[1769805223394,0.001,2688.9,2687.2,0.779]
[1769805223599,0.001,2688.9,2687.2,9.18894671]
[1769805223794,0.001,2688.9,2687.3,9.33908138]
[1769805223995,0.001,2688.9,2687.4,0.93026717]
[1769805224198,0.001,2688.9,2687.4,9.34021388]
[1769805224611,0.001,2688.9,2687.4,0.93026717]
[1769805226238,0.001,2688.9,2687.4,9.34021388]
[1769805226431,0.001,2688.9,2687.5,1.39904172]
[1769805226635,8.71237053,2690.4,2687.9,8.40994671]
[1769805226834,8.71237053,2689.9,2687.5,1.39904172]
[1769805227006,8.71237053,2689.9,2687.5,9.18894671]
[1769805227208,0.55986406,2689.6,2687.6,8.40994671]
[1769805227821,0.55986406,2689.6,2687.6,0.779]
[1769805228140,8.71237053,2689.4,2687.7,0.93016333]
[1769805228450,0.9295408,2689.5,2687.7,0.93016333]
[1769805228610,9.23312734,2689.4,2687.7,0.93016333]
[1769805230049,0.52075681,2689.4,2687.7,0.93016333]
[1769805230231,1.48938225,2689.6,2687.7,9.34011004]
[1769805230433,0.55986406,2689.6,2687.7,9.34011004]
[1769805230612,0.001,2689.4,2687.7,0.93016333]
[1769805231211,0.92919531,2690.5,2687.9,8.40994671]
[1769805231415,0.92919531,2690.5,2688.0,0.85123467]
[1769805231416,10.07529697,2690.4,2688.0,0.85123467]
[1769805231614,10.07529697,2690.4,2687.7,0.93016333]
[1769805232038,8.71237053,2690.2,2687.7,0.93016333]
[1769805232234,8.71237053,2690.0,2687.7,0.93016333]
[1769805232634,8.71237053,2689.8,2687.7,0.93016333]
[1769805232839,8.71237053,2689.6,2687.6,2.41066805]
[1769805233017,0.89459408,2689.5,2687.7,0.61314598]
[1769805233219,9.60696461,2689.5,2687.7,0.61314598]
[1769805234144,0.92957536,2689.4,2687.8,0.93012872]
[1769805235265,0.92956232,2689.5,2687.8,0.93012872]
[1769805235752,8.71237053,2689.4,2687.7,0.61314598]
[1769805236050,8.71237053,2689.2,2687.7,0.93015227]
[1769805236269,0.92967907,2689.1,2687.7,0.93015227]
[1769805236758,0.92966606,2689.2,2687.7,0.93015227]
[1769805236975,9.64184221,2689.7,2687.7,0.93015227]
[1769805237565,0.92947168,2689.7,2687.7,9.34009898]
[1769805237744,0.46470922,2689.7,2687.8,2.23313702]
[1769805237947,9.17707975,2689.7,2687.8,0.779]
[1769805238455,8.71237053,2689.5,2687.9,0.93009412]
[1769805238769,8.71237053,2689.5,2687.8,0.779]
[1769805238958,8.71237053,2689.5,2687.8,1.70912132]
[1769805239629,8.71237053,2689.5,2687.6,0.70148366]
[1769805239838,8.71237053,2688.9,2687.6,0.70148366]
[1769805240157,2.4745703,2689.0,2686.1,8.40994671]
[1769805240158,8.71157053,2688.7,2686.8,0.93045684]
[1769805240335,8.71237053,2688.5,2686.3,3.72255216]
[1769805241569,9.49137053,2688.4,2686.3,3.72255216]
[1769805241729,8.71237053,2688.2,2686.3,3.72255216]
[1769805242125,0.94913705,2688.3,2686.3,3.72255216]
[1769805242339,3.71940787,2688.7,2686.3,3.72255216]
[1769805242565,3.71940787,2688.7,2686.4,8.40994671]
[1769805242767,3.71940787,2688.7,2687.8,0.0011]
[1769805242970,3.71940787,2688.7,2686.3,3.72255216]
[1769805242971,8.71237053,2688.6,2686.7,0.0011]
[1769805243359,3.71940787,2688.7,2686.7,0.0011]
[1769805243543,0.46492253,2688.6,2686.7,0.0011]
[1769805244247,0.46492253,2688.6,2686.7,8.41104671]
[1769805244447,0.46492253,2688.6,2686.8,9.34042162]
[1769805244770,1.39479379,2688.6,2686.8,9.34042162]
[1769805244963,0.46492253,2688.6,2686.8,9.34042162]
[1769805245273,0.92983573,2688.7,2686.9,9.71628884]
[1769805245460,0.92969907,2689.1,2686.9,9.71628884]
[1769805245666,0.92960993,2689.3,2686.9,9.71628884]
[1769805245864,1.89378085,2689.4,2686.9,9.71628884]
[1769805246477,10.31469961,2689.4,2687.0,0.93040565]
[1769805246645,8.42091876,2689.2,2687.0,0.93040565]
[1769805247952,8.42091876,2689.0,2687.0,0.93040565]
[1769805248151,8.42091876,2688.8,2687.0,0.93040565]
[1769805249041,8.42091876,2688.6,2686.7,3.72311259]
[1769805249747,0.92981738,2688.7,2686.8,8.35871097]
[1769805250078,0.46490869,2688.6,2686.9,1.20818236]
[1769805250397,8.88582745,2688.6,2686.7,3.72311259]
[1769805250579,9.66482745,2688.6,2686.7,3.72311259]
[1769805251303,0.92988655,2688.5,2686.7,3.72311259]
[1769805251600,4.18443271,2688.6,2686.7,3.72311259]
[1769805251601,0.92987583,2688.6,2686.7,3.72311259]
[1769805252096,0.92987583,2688.6,2686.7,12.08182356]
[1769805252259,1.40330011,2689.3,2686.8,9.73784428]
[1769805252460,2.3329359,2689.3,2687.0,8.35871097]
[1769805252780,9.350425,2689.6,2687.0,8.35871097]
[1769805253162,9.350425,2689.6,2687.1,0.93037103]
[1769805253681,9.54427671,2689.6,2687.1,0.93037103]
[1769805254286,8.42091876,2689.4,2687.1,0.93037103]
[1769805254662,8.42091876,2689.4,2687.1,9.289082]
[1769805254867,9.26301064,2689.3,2687.2,1.30105661]
[1769805255100,9.45700913,2689.3,2687.1,0.93147103]
[1769805255299,8.42091876,2689.1,2687.1,0.0011]
[1769805255604,8.42091876,2688.8,2687.1,0.0011]
[1769805255901,2.241,2688.9,2686.9,0.0011]
[1769805255902,8.42091876,2688.4,2686.9,0.0011]
[1769805256066,8.42091876,2687.9,2686.1,0.93068959]
[1769805256258,9.19991876,2687.8,2686.1,0.93068959]
[1769805256463,9.19991876,2687.8,2686.2,0.93065973]
[1769805256683,8.42091876,2687.7,2685.9,0.43372693]
[1769805256872,10.66191876,2687.5,2685.9,0.43372693]
[1769805257084,9.48711064,2687.4,2685.9,0.43372693]
[1769805257264,0.93030178,2687.3,2686.0,0.93075204]
[1769805257692,3.72048221,2687.9,2686.0,0.93075204]
[1769805257897,0.93009412,2687.9,2686.0,0.93075204]
[1769805258271,1.03609037,2689.3,2686.3,8.35871097]
[1769805258604,1.03609037,2689.3,2686.2,8.34959431]
[1769805258605,8.42091876,2689.9,2687.2,8.35871097]
[1769805258964,8.42091876,2689.8,2687.2,8.35871097]
[1769805259306,8.42091876,2689.5,2687.3,0.93030178]
[1769805260666,8.42091876,2689.3,2687.3,0.93030178]
[1769805261366,8.42091876,2689.3,2686.7,0.93050954]
[1769805261367,8.42091876,2689.1,2686.7,0.93050954]
[1769805261571,1.7086445,2689.2,2686.7,9.28922051]
[1769805262197,0.9296445,2689.2,2686.9,8.35871097]
[1769805262401,0.92957536,2689.4,2686.9,8.35871097]
[1769805262699,0.92957536,2689.4,2687.0,9.20482207]
[1769805263407,0.92957536,2689.4,2687.1,0.93037103]
[1769805263574,0.92957536,2689.4,2687.1,9.289082]
[1769805263879,9.35049412,2689.4,2687.1,0.93037103]
[1769805264082,8.88105554,2689.3,2687.1,0.93037103]
[1769805264289,8.42091876,2689.1,2687.1,0.93037103]
[1769805265096,0.55180344,2689.0,2687.1,0.93037103]
[1769805265309,9.35061918,2689.1,2687.1,0.93037103]
[1769805265478,0.19399703,2689.9,2687.2,8.35871097]
[1769805265681,1.12342008,2689.9,2687.4,8.46111097]
[1769805265927,0.001,2690.2,2687.6,8.46111097]
[1769805266087,0.93030733,2690.2,2687.8,8.46111097]
[1769805266277,0.93030998,2690.2,2687.8,8.46111097]
[1769805266473,0.93030928,2690.2,2687.8,8.46111097]
[1769805266775,0.1024,2690.1,2687.5,1.64846813]
[1769805266993,8.42091876,2689.8,2687.5,1.64846813]
[1769805267308,8.42091876,2689.8,2687.6,0.93019794]
[1769805267309,8.42091876,2689.4,2687.6,0.93019794]
[1769805267811,0.2335703,2688.9,2686.9,0.0011]
[1769805267975,8.93028345,2688.8,2686.9,0.93152825]
[1769805268176,8.42091876,2688.6,2686.9,0.9315288]
[1769805268476,8.42091876,2688.4,2686.9,0.0011]
[1769805268815,8.92922243,2688.3,2687.0,0.93040502]
[1769805268985,8.42091876,2688.3,2686.6,0.0011]
[1769805269304,0.92999032,2688.2,2686.5,3.72221286]
[1769805269681,0.92999032,2688.2,2686.3,3.53611962]
[1769805269886,1.30708704,2688.1,2686.4,0.52457677]
[1769805271473,2.23712905,2688.1,2686.5,0.93057882]
[1769805271917,10.65804781,2688.1,2686.5,0.93057882]
[1769805272485,0.50830367,2688.0,2686.5,0.93057882]
[1769805272898,8.42091876,2688.0,2686.1,0.50874872]
[1769805273205,9.53755391,2687.9,2686.4,0.93060157]
[1769805273414,0.93012872,2687.8,2686.0,3.72291002]
[1769805273911,9.35104748,2687.8,2686.0,8.72291002]
[1769805274280,0.93012872,2687.8,2686.0,8.72291002]
[1769805274478,0.93012872,2687.8,2686.1,1.0866389]
[1769805275905,0.93012872,2687.8,2686.2,0.93068274]
[1769805276675,2.04675031,2687.9,2686.2,0.93068274]
[1769805276912,0.93011516,2687.9,2686.2,0.93068274]
[1769805277774,7.95123718,2688.1,2686.2,0.93068274]
[1769805278108,7.95123718,2688.1,2686.0,5.0]
[1769805278317,7.95123718,2687.5,2686.0,5.0]
[1769805278536,7.95123718,2687.3,2685.8,0.0011]
[1769805279310,7.95123718,2687.3,2686.4,0.0011]
[1769805279513,0.80536372,2687.4,2686.4,0.0011]
[1769805279687,7.95123718,2687.8,2686.4,0.0011]
[1769805279892,0.93016333,2687.7,2686.4,0.0011]
[1769805280290,7.95123718,2687.5,2686.1,0.0011]
[1769805280491,7.95123718,2687.3,2686.1,0.0011]
[1769805280698,8.73023718,2687.2,2685.8,0.0011]
[1769805280922,0.87302372,2687.1,2685.8,0.0011]
[1769805281293,8.8242609,2687.1,2685.8,0.0011]
[1769805281495,0.87302372,2687.1,2685.8,0.93190251]
[1769805281816,7.95123718,2687.6,2685.8,0.0011]
[1769805281817,0.9303364,2687.2,2685.8,0.0011]
[1769805282614,0.779,2687.3,2685.8,0.0011]
[1769805282813,1.70932346,2687.3,2685.8,0.0011]
[1769805283636,1.70930962,2687.3,2685.8,0.0011]
[1769805284383,7.95123718,2688.2,2685.9,7.94756102]
[1769805284718,2.09714069,2688.1,2686.1,7.94756102]
[1769805285820,2.09714069,2688.1,2686.2,0.93068274]
[1769805285996,7.95123718,2688.0,2686.2,0.93068274]
[1769805286318,7.95123718,2687.7,2685.9,3.72313925]
[1769805286523,8.73023718,2687.6,2686.1,0.93071412]
[1769805286690,0.87302372,2687.5,2686.1,0.93071412]
[1769805286892,7.95123718,2687.4,2685.8,0.0011]
[1769805287193,7.95123718,2687.2,2685.8,0.0011]
[1769805287911,7.95123718,2687.0,2685.6,0.0011]
[1769805288114,7.95123718,2686.5,2685.1,0.0011]
[1769805288313,10.2980979,2686.4,2685.1,0.0011]
[1769805288499,12.5390979,2686.4,2685.1,0.0011]
[1769805288708,11.9904609,2686.4,2685.1,0.0011]
[1769805289199,9.7494609,2686.4,2685.1,0.0011]
[1769805289401,1.01922372,2686.4,2685.1,0.0011]
[1769805289600,0.779,2686.6,2685.1,0.0011]
[1769805289810,8.881816,2686.5,2685.1,0.0011]
[1769805290009,7.95123718,2686.3,2685.1,0.0011]
[1769805291503,8.18480748,2686.2,2684.6,0.0011]
[1769805291693,8.73344448,2686.2,2684.6,0.0011]
[1769805291889,7.95123718,2685.6,2683.8,0.25801463]
[1769805292113,0.779,2685.6,2683.8,1.18952267]
[1769805292623,1.80406184,2686.1,2683.8,9.13708369]
[1769805293023,0.93070443,2686.2,2685.8,0.0011]
[1769805293604,0.93070443,2686.2,2684.7,0.0011]
[1769805293834,0.2335703,2686.3,2684.7,0.0011]
[1769805293993,8.49987418,2686.1,2684.7,0.0011]
[1769805294501,8.88178136,2686.7,2684.7,0.0011]
[1769805294702,1.26045124,2686.5,2684.7,7.94866102]
[1769805294902,0.93047491,2686.8,2684.7,7.94866102]
[1769805295401,1.71037103,2687.2,2684.7,7.94866102]
[1769805295601,0.93030178,2687.4,2685.1,7.94756102]
[1769805295824,1.80328046,2687.5,2685.3,7.94756102]
[1769805296024,1.8032713,2687.5,2685.3,7.94756102]
[1769805296226,1.8032713,2687.5,2685.5,7.94756102]
[1769805297518,1.8032713,2687.5,2685.5,8.72756102]
[1769805297898,1.8032713,2687.5,2685.6,0.93089067]
[1769805298102,1.99749765,2687.5,2685.6,0.93089067]
[1769805298298,0.548637,2687.4,2685.6,0.93089067]
[1769805298502,1.04973718,2687.3,2685.6,0.93089067]
[1769805298718,0.52460033,2687.2,2685.6,0.93089067]
[1769805298923,0.52460033,2687.2,2685.5,0.93092181]
[1769805299499,8.47583751,2687.2,2685.1,3.72421974]
[1769805299825,8.47583751,2687.2,2685.3,0.93099073]
[1769805300003,9.83416568,2687.1,2685.0,0.93109869]
[1769805300334,0.1024,2686.7,2684.8,0.36904411]
[1769805300506,1.30460033,2687.0,2684.8,0.36904411]
[1769805300507,8.47583751,2686.6,2684.8,0.36904411]
[1769805300707,0.78,2686.5,2684.9,0.93113191]
[1769805301135,0.62700033,2687.0,2684.9,0.93113191]
[1769805301136,1.8829285,2687.1,2684.9,8.87869293]
[1769805301435,0.56044126,2687.0,2685.0,9.24478807]
[1769805301658,0.93037103,2687.1,2685.0,9.24478807]
[1769805301937,3.72148412,2687.2,2685.3,0.93099467]
[1769805302705,3.72148412,2687.2,2685.3,8.87855569]
[1769805303104,8.51425418,2687.1,2685.3,0.93099467]
[1769805303341,10.42580748,2687.0,2684.9,0.93111027]
[1769805303542,0.1024,2686.7,2684.7,0.0011]
[1769805303709,7.95123718,2686.3,2684.7,0.0011]
[1769805304045,8.88205853,2685.8,2683.6,8.87912147]
[1769805304339,8.88205853,2685.8,2683.1,3.72697739]
[1769805304340,7.95123718,2685.2,2683.1,0.93172853]
[1769805304652,7.95123718,2685.0,2682.8,0.40890568]
[1769805304847,0.92268878,2684.9,2683.2,0.93171502]
[1769805305056,1.41833936,2684.9,2683.1,0.93175078]
[1769805305262,1.41833936,2684.9,2682.9,0.41364008]
[1769805305548,1.09888245,2686.9,2682.8,0.40890568]
[1769805305549,11.6745226,2686.2,2683.6,0.93157526]
[1769805305720,8.73123718,2685.7,2683.6,0.93157526]
[1769805305916,9.33647745,2685.6,2683.4,0.93165387]
[1769805306246,8.88212785,2685.6,2683.4,0.93165387]
[1769805307430,0.93089067,2685.6,2683.4,8.75326378]
[1769805307745,9.56455604,2685.6,2683.5,1.24799613]
[1769805308040,9.56455604,2685.6,2683.3,3.7266975]
[1769805308439,9.56455604,2685.6,2683.2,3.72661548]
[1769805308624,8.78455604,2685.6,2683.3,7.82160991]
[1769805308804,0.93089067,2685.6,2683.3,7.82160991]
[1769805309536,8.78455604,2685.6,2683.3,7.82160991]
[1769805309747,8.08723567,2685.3,2683.2,3.72661548]
[1769805309918,0.93102934,2685.2,2682.9,3.72723655]
[1769805310326,0.93102934,2685.2,2683.0,7.82160991]
[1769805311810,1.25081187,2685.5,2683.2,7.82160991]
[1769805312114,0.27511427,2685.8,2683.8,7.82160991]
[1769805312334,0.27511427,2685.8,2684.0,7.82160991]
[1769805312536,0.93044028,2686.9,2684.1,7.92400991]
[1769805312735,0.93141079,2687.0,2684.6,7.92400991]
[1769805312937,0.001,2687.0,2684.6,7.92400991]
[1769805313142,0.93122964,2687.6,2685.2,7.82160991]
[1769805313323,0.001,2687.6,2685.4,7.82160991]
[1769805313526,0.92992114,2688.4,2686.0,7.82160991]
[1769805313772,0.1928389,2688.5,2686.2,7.92400991]
[1769805314055,0.27107309,2689.5,2686.2,7.92400991]
[1769805314056,0.27107309,2689.5,2687.5,7.82160991]
[1769805314363,0.001,2690.2,2687.4,0.1024]
[1769805314364,0.001,2690.2,2688.1,7.82160991]
[1769805314936,0.92895362,2691.2,2688.7,7.82160991]
[1769805315165,1.40807777,2691.3,2688.9,7.82160991]
[1769805315315,1.21409327,2691.3,2689.1,7.82160991]
[1769805315523,3.71505841,2691.8,2689.0,0.86016099]
[1769805315524,0.92875845,2691.8,2689.5,7.82160991]
[1769805315918,0.9285051,2692.5,2689.8,7.82160991]
[1769805316114,8.78217047,2692.5,2689.8,7.82160991]
[1769805316349,1.12240331,2692.5,2689.8,7.82160991]
[1769805316550,0.51079502,2692.4,2690.0,7.82160991]
[1769805316750,0.51079502,2692.4,2690.2,7.82160991]
[1769805317625,1.20001753,2692.6,2690.2,7.82160991]
[1769805318262,1.20001753,2692.6,2690.4,7.82160991]
[1769805318420,0.27152646,2692.6,2690.4,7.82160991]
[1769805318752,0.27152646,2692.6,2690.8,7.82160991]
[1769805318981,0.27152646,2692.6,2690.3,0.92926439]
[1769805318982,0.94692114,2694.0,2691.4,7.82160991]
[1769805319152,0.94692114,2694.0,2691.8,7.82160991]
[1769805319951,8.80058651,2694.0,2691.3,0.779]
[1769805320118,0.92809147,2693.7,2691.3,1.70789169]
[1769805320552,0.92809147,2693.7,2691.3,9.5295016]
[1769805321133,0.87809147,2693.7,2691.3,9.5295016]
[1769805321342,0.45904574,2693.6,2691.5,7.82160991]
[1769805321962,0.45904574,2693.6,2691.6,0.779]
[1769805322326,0.45904574,2693.6,2691.7,0.92878106]
[1769805322327,1.38717267,2693.6,2691.7,0.92878106]
[1769805322524,0.0189112,2694.0,2691.8,7.82160991]
[1769805322721,0.92774705,2694.7,2692.5,7.82160991]
[1769805322923,0.92774705,2694.7,2692.7,7.82160991]
[1769805323144,3.70953613,2695.8,2692.9,7.82160991]
[1769805323856,0.19366268,2695.7,2692.9,7.82160991]
[1769805324055,0.39031988,2695.6,2693.0,0.86006099]
[1769805324242,0.92747171,2695.5,2693.1,0.92829824]
[1769805324652,0.92747171,2695.5,2693.4,7.82160991]
[1769805324835,4.10009615,2695.6,2693.3,0.1024]
[1769805324836,0.27292381,2697.1,2694.7,7.82160991]
[1769805325037,7.85366537,2696.9,2694.4,2.18327853]
[1769805325257,7.85366537,2696.4,2693.6,1.74662282]
[1769805325460,7.85366537,2695.8,2693.6,1.74662282]
[1769805325771,1.12054444,2697.0,2694.0,7.82160991]
[1769805325957,1.12054444,2697.0,2693.7,0.1024]
[1769805325958,0.9269488,2697.1,2694.5,7.82160991]
[1769805326158,0.9269488,2697.1,2694.9,7.82160991]
[1769805326369,7.95606537,2697.2,2694.7,1.90194018]
[1769805326678,7.85366537,2697.2,2694.9,0.92767472]
[1769805326856,0.78536654,2697.1,2695.0,8.28544866]
[1769805327061,0.92664665,2697.9,2695.3,7.92400991]
[1769805327381,0.92664665,2697.9,2695.0,0.46383875]
[1769805327382,8.78031202,2697.9,2695.0,0.46383875]
[1769805327557,8.78031202,2697.9,2694.8,1.90194018]
[1769805327558,7.85366537,2697.5,2694.8,1.90194018]
[1769805327760,8.08723567,2696.9,2694.8,1.90194018]
[1769805327971,8.29703997,2696.8,2694.8,1.90194018]
[1769805328281,0.92678405,2697.5,2694.8,7.82160991]
[1769805328449,0.50772949,2697.4,2694.9,1.15323227]
[1769805328642,0.95110409,2697.4,2694.9,1.15323227]
[1769805328866,0.49120793,2697.3,2694.9,1.15323227]
[1769805329077,7.85366537,2697.2,2694.8,2.05378604]
[1769805329591,0.49120793,2697.3,2694.8,2.05378604]
[1769805329592,7.85366537,2697.0,2694.8,2.05378604]
[1769805329761,0.001,2696.2,2694.8,2.05378604]
[1769805330479,0.001,2696.2,2694.9,0.9276782]
[1769805330987,0.001,2696.2,2694.8,5.76461886]
[1769805330988,8.3448733,2696.1,2694.8,2.05378604]
[1769805331279,8.3448733,2696.1,2692.9,17.82160991]
[1769805331280,0.91238733,2696.0,2693.7,9.6942507]
[1769805331451,0.49120793,2696.0,2694.1,0.92792583]
[1769805331653,0.001,2696.2,2694.0,0.92796528]
[1769805331654,0.49120793,2695.9,2694.0,0.92796528]
[1769805331877,0.49120793,2695.9,2693.8,1.26264079]
[1769805331878,0.001,2696.2,2693.8,1.26264079]
[1769805332083,7.95606537,2696.1,2693.8,1.26264079]
[1769805332289,0.001,2696.2,2693.9,3.71203139]
[1769805332457,0.49220793,2696.2,2694.0,1.37243047]
[1769805332655,0.001,2696.2,2694.0,1.37243047]
[1769805332991,0.2335703,2693.6,2692.2,0.25092449]
[1769805333162,0.1024,2693.1,2689.9,3.71759661]
[1769805333357,0.19344223,2690.8,2690.1,7.82160991]
[1769805333683,0.2335703,2692.8,2690.1,8.75091944]
[1769805333846,0.1024,2692.6,2690.3,0.92926385]
[1769805334050,0.1024,2692.4,2690.4,0.93030764]
[1769805334356,0.92857408,2692.3,2690.4,1.39505141]
[1769805334799,0.92857408,2692.3,2690.4,0.0011]
[1769805335307,0.19349674,2692.2,2690.4,0.0011]
[1769805335501,0.778,2692.1,2690.4,0.0011]
[1769805335655,0.92857408,2692.3,2690.4,0.93031859]
[1769805335849,0.19349015,2692.1,2690.4,0.93031859]
[1769805336052,0.19349015,2692.1,2690.5,0.4647238]
[1769805336293,0.92857408,2692.3,2690.5,0.4647238]
[1769805336792,3.71429632,2692.5,2690.6,9.28184631]
[1769805337404,1.70626377,2693.2,2690.6,9.28184631]
[1769805337865,0.8804,2693.1,2690.4,0.0011]
[1769805338066,0.1024,2692.1,2689.1,8.43933703]
[1769805338284,8.06950256,2691.6,2688.7,0.9297941]
[1769805338467,0.1024,2691.4,2688.3,8.43933703]
[1769805338798,0.2335703,2691.1,2688.6,0.92985166]
[1769805338957,0.2335703,2691.1,2688.5,0.92987453]
[1769805339155,0.2335703,2691.1,2688.5,0.93692116]
[1769805339156,0.1024,2690.8,2688.5,0.93692116]
[1769805339359,0.3359703,2690.6,2687.6,8.43933703]
[1769805339553,0.3359703,2690.6,2688.4,0.92989238]
[1769805339780,0.3359703,2690.4,2687.6,8.43933703]
[1769805339982,0.3359703,2690.4,2688.0,3.72022587]
[1769805340187,0.3359703,2690.4,2688.1,0.37202259]
[1769805340389,0.3359703,2690.4,2688.4,0.92991937]
[1769805340762,0.3359703,2690.2,2687.7,3.72056887]
[1769805340988,0.778,2690.1,2687.8,8.43933703]
[1769805341298,0.778,2690.0,2687.8,8.43933703]
[1769805341482,0.92926439,2690.3,2687.8,8.43933703]
[1769805341684,1.2426322,2690.2,2688.5,0.0011]
[1769805342267,0.2335703,2690.1,2688.5,0.0011]
[1769805343397,0.2335703,2689.9,2688.5,0.0011]
[1769805343608,0.3359703,2689.9,2688.3,0.0011]
[1769805343810,0.2335703,2689.7,2687.2,12.16164725]
[1769805344048,0.778,2689.6,2687.9,0.93009176]
[1769805344299,0.1024,2689.5,2687.5,0.93021418]
[1769805344595,0.8804,2689.5,2687.7,0.93015812]
[1769805344914,0.20433383,2689.8,2687.9,9.36941795]
[1769805345061,0.92936802,2690.0,2688.0,1.30898429]
[1769805345265,0.92936802,2690.0,2687.4,3.72098496]
[1769805345565,0.92936802,2690.0,2687.4,12.16032199]
[1769805346160,0.92936802,2690.0,2687.4,3.72098496]
[1769805346369,0.778,2689.9,2687.5,8.43933703]
[1769805346967,0.92936802,2690.0,2687.5,8.43933703]
[1769805347169,0.92936802,2690.0,2687.7,8.43933703]
[1769805347479,3.71747211,2690.1,2687.9,8.43933703]
[1769805347682,8.06950256,2689.9,2687.2,0.0011]
[1769805347887,0.3359703,2690.0,2685.9,8.43933703]
[1769805347888,0.71235131,2687.9,2685.9,8.43933703]
[1769805348062,0.778,2687.8,2685.9,8.43933703]
[1769805348264,0.778,2687.8,2686.1,0.9307146]
[1769805348495,0.778,2687.8,2686.2,0.93067896]
[1769805348703,0.778,2687.8,2685.8,0.93078724]
[1769805348863,0.778,2687.8,2685.9,0.93078345]
[1769805349269,0.3359703,2687.7,2685.9,0.46541828]
[1769805349590,0.3359703,2687.5,2685.8,0.9307989]
[1769805349778,0.778,2687.4,2685.9,0.93078037]
[1769805350295,0.778,2687.4,2685.7,0.93084045]
[1769805350600,0.779,2687.3,2685.2,8.43933703]
[1769805350802,0.2335703,2687.0,2685.3,1.21635254]
[1769805351020,0.2335703,2687.0,2685.3,0.93099281]
[1769805351170,0.3359703,2687.2,2685.4,0.93095572]
[1769805351370,0.2335703,2687.0,2685.1,3.72425332]
[1769805351600,0.2335703,2687.0,2685.2,0.93100698]
[1769805351906,0.93037103,2687.1,2685.2,9.37034401]
[1769805352197,0.93037103,2687.1,2685.3,1.30945973]
[1769805352198,1.77794496,2687.1,2685.3,1.30945973]
[1769805352396,0.2335703,2687.0,2685.2,0.93100698]
[1769805352602,1.0125703,2687.0,2684.9,3.72452268]
[1769805352803,1.0125703,2687.0,2685.1,0.93106021]
[1769805353100,0.2335703,2686.8,2685.1,0.93106161]
[1769805353299,0.2335703,2686.8,2684.5,12.16434353]
[1769805353300,0.2335703,2686.8,2685.0,0.93107993]
[1769805353503,0.3359703,2686.6,2684.5,0.9312721]
[1769805354086,8.40547286,2686.6,2684.5,0.9312646]
[1769805354406,0.3359703,2686.4,2684.4,0.93128668]
[1769805354815,0.3359703,2686.4,2684.1,0.0011]
[1769805354978,0.1024,2686.2,2684.9,0.93109896]
[1769805355176,0.93050954,2686.7,2685.0,0.46557708]